Workbook

Sheet 4.12 PowerSupplExp
L1: File Number: | M1: EB-2018-0087
L2: Exhibit:
L3: Tab:
L4: Schedule:
L5: Page:
L7: Date:
A10: Power Supply Expense
A11: Determination of Commodity
C13: Last Actual kWh's | F13: non GA mod | G13: GA mod | H13: Total | J13: RPP | K13: non-RPP | L13: RPP
A14: Customer Class Name | C14: Last Actual kWh's | F14: non-RPP | K14: % | L14: %
A15: Residential | C15: ='[1]3.11 LoadForecast'!H28 -> 12775802 | H15: =SUM(F15:G15) -> 0 | J15: =C15-(F15+G15) -> 12775802 | K15: =+H15/C15 -> 0 | L15: =+J15/C15 -> 1
A16: General Service < 50 kW | C16: ='[1]3.11 LoadForecast'!H29 -> 4702580 | H16: =SUM(F16:G16) -> 0 | J16: =C16-(F16+G16) -> 4702580 | K16: =+H16/C16 -> 0 | L16: =+J16/C16 -> 1
A17: General Service > 50 to 4999 kW | C17: ='[1]3.11 LoadForecast'!H30 -> 6797046 | G17: =C17 -> 6797046 | H17: =SUM(F17:G17) -> 6797046 | J17: =C17-(F17+G17) -> 0 | K17: =+H17/C17 -> 1 | L17: =+J17/C17 -> 0
A18: Unmetered Scattered Load | C18: ='[1]3.11 LoadForecast'!H31 -> 2892 | H18: =SUM(F18:G18) -> 0 | J18: =C18-(F18+G18) -> 2892 | K18: =+H18/C18 -> 0 | L18: =+J18/C18 -> 1
A19: Sentinel Lighting | C19: ='[1]3.11 LoadForecast'!H32 -> 20629 | H19: =SUM(F19:G19) -> 0 | J19: =C19-(F19+G19) -> 20629 | K19: =+H19/C19 -> 0 | L19: =+J19/C19 -> 1
A20: Street Lighting | C20: ='[1]3.11 LoadForecast'!H33 -> 274259 | H20: =SUM(F20:G20) -> 0 | J20: =C20-(F20+G20) -> 274259 | K20: =+H20/C20 -> 0 | L20: =+J20/C20 -> 1
A21: other | C21: 0 | H21: =SUM(F21:G21) -> 0 | J21: =C21-(F21+G21) -> 0
C22: 0 | J22: =C22-F22 -> 0
C23: 0 | J23: =C23-F23 -> 0
A24: TOTAL | C24: =SUM(C15:D23) -> 24573208 | F24: =SUM(F15:F23) -> 0 | G24: =SUM(G15:G23) -> 6797046 | H24: =SUM(H15:H23) -> 6797046 | J24: =SUM(J15:J23) -> 17776162
A25: % | C25: =$C$24/$C$24 -> 1 | F25: =$F$24/$C$24 -> 0 | G25: =$G$24/$C$24 -> 0.2766039338 | J25: =$J$24/$C$24 -> 0.7233960662
A27: Forecast Price | F27: GA modifiler | G27: 44.38
A29: HOEP ($/MWh) | F29: 21.57 | G29: 21.57
A30: Global Adjustment ($/MWh) | F30: 103.8 | G30: =F30-G27 -> 59.42
A31: Adjustments | F31: 1 | G31: 1
A32: TOTAL ($/MWh) | F32: =SUM(F29:F31) -> 126.37 | G32: =SUM(G29:G31) -> 81.99 | J32: 82
A33: $/kWh | F33: =F32/1000 -> 0.12637 | G33: =G32/1000 -> 0.08199 | J33: =J32/1000 -> 0.082
A34: % | F34: =F25 -> 0 | G34: =G25 -> 0.2766039338 | J34: =J25 -> 0.7233960662
A35: WEIGHTED AVERAGE PRICE | C35: =SUM(F35:J35) -> 0.08199723396 | F35: =F33*F34 -> 0 | G35: =G33*G34 -> 0.02267875654 | J35: =J33*J34 -> 0.05931847742
A37: Electricity Projections
A38: (volumes for the bridge and test year are automatically loss adjusted)
E39: ='[1]0.1 LDC Info'!$E$23 -> 2018 | H39: ='[1]0.1 LDC Info'!$E$25 -> 2019
A40: Customer | C40: Revenue | D40: Expense
A41: Class Name | C41: USA # | D41: USA # | E41: Volume | F41: rate ($/kWh): | G41: Amount | H41: Volume | I41: rate ($/kWh): | J41: Amount
A42: =A15 -> Residential | B42: kWh | C42: 4006 | D42: 4705 | E42: =CHOOSE(MATCH(B42,{0,"kWh","kW"},0),1,'[1]3.11 LoadForecast'!$I43*'[1]3.11 LoadForecast'!B87,'[1]3.11 LoadForecast'!$I$3) -> 14859993.19 | F42: =$C$35 -> 0.08199723396 | G42: =E42*F42 -> 1218478.338 | H42: =CHOOSE(MATCH(B42,{0,"kWh","kW"},0),1,'[1]3.11 LoadForecast'!$J43*'[1]3.11 LoadForecast'!C87,'[1]3.11 LoadForecast'!$J73) -> 14878532.35 | I42: =$C$35 -> 0.08199723396 | J42: =H42*I42 -> 1219998.498
A43: =A16 -> General Service < 50 kW | B43: kWh | C43: 4010 | D43: 4705 | E43: =CHOOSE(MATCH(B43,{0,"kWh","kW"},0),1,'[1]3.11 LoadForecast'!$I44*'[1]3.11 LoadForecast'!B88,'[1]3.11 LoadForecast'!$I$3) -> 5151369.722 | F43: =$C$35 -> 0.08199723396 | G43: =E43*F43 -> 422398.0683 | H43: =CHOOSE(MATCH(B43,{0,"kWh","kW"},0),1,'[1]3.11 LoadForecast'!$J44*'[1]3.11 LoadForecast'!C88,'[1]3.11 LoadForecast'!$J74) -> 5249882.917 | I43: =$C$35 -> 0.08199723396 | J43: =H43*I43 -> 430475.8778
A44: =A17 -> General Service > 50 to 4999 kW | B44: kWh | C44: 4035 | D44: 4705 | E44: =CHOOSE(MATCH(B44,{0,"kWh","kW"},0),1,'[1]3.11 LoadForecast'!$I45*'[1]3.11 LoadForecast'!B89,'[1]3.11 LoadForecast'!$I$3) -> 7543841.722 | F44: =$C$35 -> 0.08199723396 | G44: =E44*F44 -> 618574.1546 | H44: =CHOOSE(MATCH(B44,{0,"kWh","kW"},0),1,'[1]3.11 LoadForecast'!$J45*'[1]3.11 LoadForecast'!C89,'[1]3.11 LoadForecast'!$J75) -> 7688107.808 | I44: =$C$35 -> 0.08199723396 | J44: =H44*I44 -> 630403.5747
A45: =A18 -> Unmetered Scattered Load | B45: kWh | C45: 4010 | D45: 4705 | E45: =CHOOSE(MATCH(B45,{0,"kWh","kW"},0),1,'[1]3.11 LoadForecast'!$I46*'[1]3.11 LoadForecast'!B90,'[1]3.11 LoadForecast'!$I$3) -> 5522.27045 | F45: =$C$35 -> 0.08199723396 | G45: =E45*F45 -> 452.8109021 | H45: =CHOOSE(MATCH(B45,{0,"kWh","kW"},0),1,'[1]3.11 LoadForecast'!$J46*'[1]3.11 LoadForecast'!C90,'[1]3.11 LoadForecast'!$J76) -> 5627.876636 | I45: =$C$35 -> 0.08199723396 | J45: =H45*I45 -> 461.4703172
A46: =A19 -> Sentinel Lighting | B46: kWh | C46: 4025 | D46: 4705 | E46: =CHOOSE(MATCH(B46,{0,"kWh","kW"},0),1,'[1]3.11 LoadForecast'!$I47*'[1]3.11 LoadForecast'!B91,'[1]3.11 LoadForecast'!$I$3) -> 26134.49665 | F46: =$C$35 -> 0.08199723396 | G46: =E46*F46 -> 2142.956436 | H46: =CHOOSE(MATCH(B46,{0,"kWh","kW"},0),1,'[1]3.11 LoadForecast'!$J47*'[1]3.11 LoadForecast'!C91,'[1]3.11 LoadForecast'!$J77) -> 26634.28465 | I46: =$C$35 -> 0.08199723396 | J46: =H46*I46 -> 2183.93767
A47: =A20 -> Street Lighting | B47: kWh | C47: 4025 | D47: 4705 | E47: =CHOOSE(MATCH(B47,{0,"kWh","kW"},0),1,'[1]3.11 LoadForecast'!$I48*'[1]3.11 LoadForecast'!B92,'[1]3.11 LoadForecast'!$I$3) -> 299727.3796 | F47: =$C$35 -> 0.08199723396 | G47: =E47*F47 -> 24576.81607 | H47: =CHOOSE(MATCH(B47,{0,"kWh","kW"},0),1,'[1]3.11 LoadForecast'!$J48*'[1]3.11 LoadForecast'!C92,'[1]3.11 LoadForecast'!$J78) -> 305459.2729 | I47: =$C$35 -> 0.08199723396 | J47: =H47*I47 -> 25046.81547
A48: =A21 -> other | B48: kWh | C48: 4025 | D48: 4705 | E48: =CHOOSE(MATCH(B48,{0,"kWh","kW"},0),1,'[1]3.11 LoadForecast'!$I49*'[1]3.11 LoadForecast'!B93,'[1]3.11 LoadForecast'!$I$3) -> 0 | F48: =$C$35 -> 0.08199723396 | G48: =E48*F48 -> 0 | H48: =CHOOSE(MATCH(B48,{0,"kWh","kW"},0),1,'[1]3.11 LoadForecast'!$J49*'[1]3.11 LoadForecast'!C93,'[1]3.11 LoadForecast'!$J79) -> 0 | I48: =$C$35 -> 0.08199723396 | J48: =H48*I48 -> 0
A49: =A22 -> 0 | B49: kWh | C49: 4025 | D49: 4705 | E49: =CHOOSE(MATCH(B49,{0,"kWh","kW"},0),1,'[1]3.11 LoadForecast'!$I50*'[1]3.11 LoadForecast'!B94,'[1]3.11 LoadForecast'!$I$3) -> 0 | F49: =$C$35 -> 0.08199723396 | G49: =E49*F49 -> 0 | H49: =CHOOSE(MATCH(B49,{0,"kWh","kW"},0),1,'[1]3.11 LoadForecast'!$J50*'[1]3.11 LoadForecast'!C94,'[1]3.11 LoadForecast'!$J80) -> 0 | I49: =$C$35 -> 0.08199723396 | J49: =H49*I49 -> 0
A50: =A23 -> 0 | B50: kWh | C50: 4025 | D50: 4705 | E50: =CHOOSE(MATCH(B50,{0,"kWh","kW"},0),1,'[1]3.11 LoadForecast'!$I51*'[1]3.11 LoadForecast'!B95,'[1]3.11 LoadForecast'!$I$3) -> 0 | F50: =$C$35 -> 0.08199723396 | G50: =E50*F50 -> 0 | H50: =CHOOSE(MATCH(B50,{0,"kWh","kW"},0),1,'[1]3.11 LoadForecast'!$J51*'[1]3.11 LoadForecast'!C95,'[1]3.11 LoadForecast'!$J81) -> 0 | I50: =$C$35 -> 0.08199723396 | J50: =H50*I50 -> 0
A51: TOTAL | E51: =SUM(E42:E50) -> 27886588.78 | G51: =SUM(G42:G46) -> 2262046.328 | H51: =SUM(H42:H50) -> 28154244.51 | J51: =SUM(J42:J50) -> 2308570.174
A53: Transmission - Network
A54: (volumes for the bridge and test year are automatically loss adjusted)
E55: ='[1]0.1 LDC Info'!$E$23 -> 2018 | H55: ='[1]0.1 LDC Info'!$E$25 -> 2019
A56: Customer | C56: Revenue | D56: Expense
A57: Class Name | C57: USA # | D57: USA # | E57: Volume | F57: Rate | G57: Amount | H57: Volume | I57: Rate | J57: Amount
A58: =A15 -> Residential | B58: ='[1]0.2 Customer Classes'!$D$13 -> kWh | C58: 4066 | D58: 4714 | E58: =CHOOSE(MATCH(B58,{0,"kWh","kW"},0),1,'[1]3.11 LoadForecast'!$I43*'[1]3.11 LoadForecast'!B87,'[1]3.11 LoadForecast'!$I73) -> 14859993.19 | F58: ='[2]9. RTSR Rates to Forecast'!D17 -> 0.0068 | G58: =E58*F58 -> 101047.9537 | H58: =CHOOSE(MATCH(B58,{0,"kWh","kW"},0),1,'[1]3.11 LoadForecast'!$J43*'[1]3.11 LoadForecast'!C87,'[1]3.11 LoadForecast'!$J73) -> 14878532.35 | I58: ='[2]9. RTSR Rates to Forecast'!J37 -> 0.006695243089 | J58: =H58*I58 -> 99615.39089
A59: =A16 -> General Service < 50 kW | B59: ='[1]0.2 Customer Classes'!$D$14 -> kWh | C59: 4066 | D59: 4714 | E59: =CHOOSE(MATCH(B59,{0,"kWh","kW"},0),1,'[1]3.11 LoadForecast'!$I44*'[1]3.11 LoadForecast'!B88,'[1]3.11 LoadForecast'!$I74) -> 5151369.722 | F59: ='[2]9. RTSR Rates to Forecast'!D18 -> 0.006 | G59: =E59*F59 -> 30908.21833 | H59: =CHOOSE(MATCH(B59,{0,"kWh","kW"},0),1,'[1]3.11 LoadForecast'!$J44*'[1]3.11 LoadForecast'!C88,'[1]3.11 LoadForecast'!$J74) -> 5249882.917 | I59: ='[2]9. RTSR Rates to Forecast'!J38 -> 0.005907567306 | J59: =H59*I59 -> 31014.03668
A60: =A17 -> General Service > 50 to 4999 kW | B60: ='[1]0.2 Customer Classes'!$D$15 -> kW | C60: 4066 | D60: 4714 | E60: =CHOOSE(MATCH(B60,{0,"kWh","kW"},0),1,'[1]3.11 LoadForecast'!$I45*'[1]3.11 LoadForecast'!B89,'[1]3.11 LoadForecast'!$I75) -> 19002.18965 | F60: ='[2]9. RTSR Rates to Forecast'!D19 -> 2.5062 | G60: =E60*F60 -> 47623.2877 | H60: =CHOOSE(MATCH(B60,{0,"kWh","kW"},0),1,'[1]3.11 LoadForecast'!$J45*'[1]3.11 LoadForecast'!C89,'[1]3.11 LoadForecast'!$J75) -> 18883.31335 | I60: ='[2]9. RTSR Rates to Forecast'!J39 -> 2.467590589 | J60: =H60*I60 -> 46596.28631
A61: =A18 -> Unmetered Scattered Load | B61: ='[1]0.2 Customer Classes'!$D$16 -> kWh | C61: 4066 | D61: 4714 | E61: =CHOOSE(MATCH(B61,{0,"kWh","kW"},0),1,'[1]3.11 LoadForecast'!$I46*'[1]3.11 LoadForecast'!B90,'[1]3.11 LoadForecast'!$I76) -> 5522.27045 | F61: ='[2]9. RTSR Rates to Forecast'!D20 -> 0.006 | G61: =E61*F61 -> 33.1336227 | H61: =CHOOSE(MATCH(B61,{0,"kWh","kW"},0),1,'[1]3.11 LoadForecast'!$J46*'[1]3.11 LoadForecast'!C90,'[1]3.11 LoadForecast'!$J76) -> 5627.876636 | I61: ='[2]9. RTSR Rates to Forecast'!J40 -> 0.005907923342 | J61: =H61*I61 -> 33.24906374
A62: =A19 -> Sentinel Lighting | B62: ='[1]0.2 Customer Classes'!$D$17 -> kW | C62: 4066 | D62: 4714 | E62: =CHOOSE(MATCH(B62,{0,"kWh","kW"},0),1,'[1]3.11 LoadForecast'!$I47*'[1]3.11 LoadForecast'!B91,'[1]3.11 LoadForecast'!$I77) -> 65 | F62: ='[2]9. RTSR Rates to Forecast'!D21 -> 1.8998 | G62: =E62*F62 -> 123.487 | H62: =CHOOSE(MATCH(B62,{0,"kWh","kW"},0),1,'[1]3.11 LoadForecast'!$J47*'[1]3.11 LoadForecast'!C91,'[1]3.11 LoadForecast'!$J77) -> 65 | I62: ='[2]9. RTSR Rates to Forecast'!J41 -> 1.870526318 | J62: =H62*I62 -> 121.5842107
A63: =A20 -> Street Lighting | B63: ='[1]0.2 Customer Classes'!$D$18 -> kW | C63: 4066 | D63: 4714 | E63: =CHOOSE(MATCH(B63,{0,"kWh","kW"},0),1,'[1]3.11 LoadForecast'!$I48*'[1]3.11 LoadForecast'!B92,'[1]3.11 LoadForecast'!$I78) -> 774 | F63: ='[2]9. RTSR Rates to Forecast'!D22 -> 1.8902 | G63: =E63*F63 -> 1463.0148 | H63: =CHOOSE(MATCH(B63,{0,"kWh","kW"},0),1,'[1]3.11 LoadForecast'!$J48*'[1]3.11 LoadForecast'!C92,'[1]3.11 LoadForecast'!$J78) -> 773.7 | I63: ='[2]9. RTSR Rates to Forecast'!J42 -> 1.861080731 | J63: =H63*I63 -> 1439.918162
A64: =A21 -> other | B64: ='[1]0.2 Customer Classes'!$D$19 -> 0 | C64: 4066 | D64: 4714 | E64: =CHOOSE(MATCH(B64,{0,"kWh","kW"},0),1,'[1]3.11 LoadForecast'!$I49*'[1]3.11 LoadForecast'!B93,'[1]3.11 LoadForecast'!$I79) -> 1 | F64: 0 | G64: =E64*F64 -> 0 | H64: =CHOOSE(MATCH(B64,{0,"kWh","kW"},0),1,'[1]3.11 LoadForecast'!$J49*'[1]3.11 LoadForecast'!C93,'[1]3.11 LoadForecast'!$J79) -> 1 | I64: 0 | J64: =H64*I64 -> 0
A65: =A22 -> 0 | B65: ='[1]0.2 Customer Classes'!$D$20 -> 0 | C65: 4066 | D65: 4714 | E65: =CHOOSE(MATCH(B65,{0,"kWh","kW"},0),1,'[1]3.11 LoadForecast'!$I50*'[1]3.11 LoadForecast'!B94,'[1]3.11 LoadForecast'!$I80) -> 1 | F65: 0 | G65: =E65*F65 -> 0 | H65: =CHOOSE(MATCH(B65,{0,"kWh","kW"},0),1,'[1]3.11 LoadForecast'!$J50*'[1]3.11 LoadForecast'!C94,'[1]3.11 LoadForecast'!$J80) -> 1 | I65: 0 | J65: =H65*I65 -> 0
A66: =A23 -> 0 | B66: ='[1]0.2 Customer Classes'!$D$21 -> 0 | C66: 4066 | D66: 4714 | E66: =CHOOSE(MATCH(B66,{0,"kWh","kW"},0),1,'[1]3.11 LoadForecast'!$I51*'[1]3.11 LoadForecast'!B95,'[1]3.11 LoadForecast'!$I81) -> 1 | F66: 0 | G66: =E66*F66 -> 0 | H66: =CHOOSE(MATCH(B66,{0,"kWh","kW"},0),1,'[1]3.11 LoadForecast'!$J51*'[1]3.11 LoadForecast'!C95,'[1]3.11 LoadForecast'!$J81) -> 1 | I66: 0 | J66: =H66*I66 -> 0
A67: TOTAL | E67: =SUM(E58:E66) -> 20036729.37 | G67: =SUM(G58:G66) -> 181199.0951 | H67: =SUM(H58:H66) -> 20153768.16 | J67: =SUM(J58:J66) -> 178820.4653
A69: Transmission - Connection
A70: (volumes for the bridge and test year are automatically loss adjusted)
E71: ='[1]0.1 LDC Info'!$E$23 -> 2018 | H71: ='[1]0.1 LDC Info'!$E$25 -> 2019
A72: Customer | C72: Revenue | D72: Expense
A73: Class Name | C73: USA # | D73: USA # | E73: Volume | F73: Rate | G73: Amount | H73: Volume | I73: Rate | J73: Amount
A74: =A15 -> Residential | B74: ='[1]0.2 Customer Classes'!$D$13 -> kWh | C74: 4068 | D74: 4716 | E74: =CHOOSE(MATCH(B74,{0,"kWh","kW"},0),1,'[1]3.11 LoadForecast'!$I43*'[1]3.11 LoadForecast'!B87,'[1]3.11 LoadForecast'!$I73) -> 14859993.19 | F74: ='[2]9. RTSR Rates to Forecast'!D27 -> 0.0016 | G74: =E74*F74 -> 23775.9891 | H74: =CHOOSE(MATCH(B74,{0,"kWh","kW"},0),1,'[1]3.11 LoadForecast'!$J43*'[1]3.11 LoadForecast'!C87,'[1]3.11 LoadForecast'!$J73) -> 14878532.35 | I74: ='[2]9. RTSR Rates to Forecast'!J47 -> 0.001844188142 | J74: =H74*I74 -> 27438.81294
A75: =A16 -> General Service < 50 kW | B75: ='[1]0.2 Customer Classes'!$D$14 -> kWh | C75: 4068 | D75: 4716 | E75: =CHOOSE(MATCH(B75,{0,"kWh","kW"},0),1,'[1]3.11 LoadForecast'!$I44*'[1]3.11 LoadForecast'!B88,'[1]3.11 LoadForecast'!$I74) -> 5151369.722 | F75: ='[2]9. RTSR Rates to Forecast'!D28 -> 0.0016 | G75: =E75*F75 -> 8242.191555 | H75: =CHOOSE(MATCH(B75,{0,"kWh","kW"},0),1,'[1]3.11 LoadForecast'!$J44*'[1]3.11 LoadForecast'!C88,'[1]3.11 LoadForecast'!$J74) -> 5249882.917 | I75: ='[2]9. RTSR Rates to Forecast'!J48 -> 0.001844188685 | J75: =H75*I75 -> 9681.774673
A76: =A17 -> General Service > 50 to 4999 kW | B76: ='[1]0.2 Customer Classes'!$D$15 -> kW | C76: 4068 | D76: 4716 | E76: =CHOOSE(MATCH(B76,{0,"kWh","kW"},0),1,'[1]3.11 LoadForecast'!$I45*'[1]3.11 LoadForecast'!B89,'[1]3.11 LoadForecast'!$I75) -> 19002.18965 | F76: ='[2]9. RTSR Rates to Forecast'!D29 -> 0.5763 | G76: =E76*F76 -> 10950.96189 | H76: =CHOOSE(MATCH(B76,{0,"kWh","kW"},0),1,'[1]3.11 LoadForecast'!$J45*'[1]3.11 LoadForecast'!C89,'[1]3.11 LoadForecast'!$J75) -> 18883.31335 | I76: ='[2]9. RTSR Rates to Forecast'!J49 -> 0.6642537961 | J76: =H76*I76 -> 12543.31257
A77: =A18 -> Unmetered Scattered Load | B77: ='[1]0.2 Customer Classes'!$D$16 -> kWh | C77: 4068 | D77: 4716 | E77: =CHOOSE(MATCH(B77,{0,"kWh","kW"},0),1,'[1]3.11 LoadForecast'!$I46*'[1]3.11 LoadForecast'!B90,'[1]3.11 LoadForecast'!$I76) -> 5522.27045 | F77: ='[2]9. RTSR Rates to Forecast'!D30 -> 0.0016 | G77: =E77*F77 -> 8.83563272 | H77: =CHOOSE(MATCH(B77,{0,"kWh","kW"},0),1,'[1]3.11 LoadForecast'!$J46*'[1]3.11 LoadForecast'!C90,'[1]3.11 LoadForecast'!$J76) -> 5627.876636 | I77: ='[2]9. RTSR Rates to Forecast'!J50 -> 0.001844168098 | J77: =H77*I77 -> 10.37875055
A78: =A19 -> Sentinel Lighting | B78: ='[1]0.2 Customer Classes'!$D$17 -> kW | C78: 4068 | D78: 4716 | E78: =CHOOSE(MATCH(B78,{0,"kWh","kW"},0),1,'[1]3.11 LoadForecast'!$I47*'[1]3.11 LoadForecast'!B91,'[1]3.11 LoadForecast'!$I77) -> 65 | F78: ='[2]9. RTSR Rates to Forecast'!D31 -> 0.4549 | G78: =E78*F78 -> 29.5685 | H78: =CHOOSE(MATCH(B78,{0,"kWh","kW"},0),1,'[1]3.11 LoadForecast'!$J47*'[1]3.11 LoadForecast'!C91,'[1]3.11 LoadForecast'!$J77) -> 65 | I78: ='[2]9. RTSR Rates to Forecast'!J51 -> 0.5243860443 | J78: =H78*I78 -> 34.08509288
A79: =A20 -> Street Lighting | B79: ='[1]0.2 Customer Classes'!$D$18 -> kW | C79: 4068 | D79: 4716 | E79: =CHOOSE(MATCH(B79,{0,"kWh","kW"},0),1,'[1]3.11 LoadForecast'!$I48*'[1]3.11 LoadForecast'!B92,'[1]3.11 LoadForecast'!$I78) -> 774 | F79: ='[2]9. RTSR Rates to Forecast'!D32 -> 0.4456 | G79: =E79*F79 -> 344.8944 | H79: =CHOOSE(MATCH(B79,{0,"kWh","kW"},0),1,'[1]3.11 LoadForecast'!$J48*'[1]3.11 LoadForecast'!B92,'[1]3.11 LoadForecast'!$J78) -> 773.7 | I79: ='[2]9. RTSR Rates to Forecast'!J52 -> 0.5136068486 | J79: =H79*I79 -> 397.3776188
A80: =A21 -> other | B80: ='[1]0.2 Customer Classes'!$D$19 -> 0 | C80: 4068 | D80: 4716 | E80: =CHOOSE(MATCH(B80,{0,"kWh","kW"},0),1,'[1]3.11 LoadForecast'!$I49*'[1]3.11 LoadForecast'!B93,'[1]3.11 LoadForecast'!$I79) -> 1 | F80: 0 | G80: =E80*F80 -> 0 | H80: =CHOOSE(MATCH(B80,{0,"kWh","kW"},0),1,'[1]3.11 LoadForecast'!$J49*'[1]3.11 LoadForecast'!B93,'[1]3.11 LoadForecast'!$J79) -> 1 | I80: 0 | J80: =H80*I80 -> 0
A81: =A22 -> 0 | B81: ='[1]0.2 Customer Classes'!$D$20 -> 0 | C81: 4068 | D81: 4716 | E81: =CHOOSE(MATCH(B81,{0,"kWh","kW"},0),1,'[1]3.11 LoadForecast'!$I50*'[1]3.11 LoadForecast'!B94,'[1]3.11 LoadForecast'!$I80) -> 1 | F81: 0 | G81: =E81*F81 -> 0 | H81: =CHOOSE(MATCH(B81,{0,"kWh","kW"},0),1,'[1]3.11 LoadForecast'!$J50*'[1]3.11 LoadForecast'!B94,'[1]3.11 LoadForecast'!$J80) -> 1 | I81: 0 | J81: =H81*I81 -> 0
A82: =A23 -> 0 | B82: ='[1]0.2 Customer Classes'!$D$21 -> 0 | C82: 4068 | D82: 4716 | E82: =CHOOSE(MATCH(B82,{0,"kWh","kW"},0),1,'[1]3.11 LoadForecast'!$I51*'[1]3.11 LoadForecast'!B95,'[1]3.11 LoadForecast'!$I81) -> 1 | F82: 0 | G82: =E82*F82 -> 0 | H82: =CHOOSE(MATCH(B82,{0,"kWh","kW"},0),1,'[1]3.11 LoadForecast'!$J51*'[1]3.11 LoadForecast'!B95,'[1]3.11 LoadForecast'!$J81) -> 1 | I82: 0 | J82: =H82*I82 -> 0
A83: TOTAL | E83: =SUM(E74:E82) -> 20036729.37 | G83: =SUM(G74:G82) -> 43352.44108 | H83: =SUM(H74:H82) -> 20153768.16 | J83: =SUM(J74:J82) -> 50105.74164
A85: Wholesale Market Service
A86: (volumes for the bridge and test year are automatically loss adjusted)
E87: ='[1]0.1 LDC Info'!$E$23 -> 2018 | H87: ='[1]0.1 LDC Info'!$E$25 -> 2019
A88: Customer | C88: Revenue | D88: Expense | F88: rate ($/kWh): | G88: 0.0052 | I88: rate ($/kWh): | J88: 0.0052
A89: Class Name | C89: USA # | D89: USA # | E89: Volume | G89: Amount | H89: Volume | J89: Amount
A90: =A15 -> Residential | B90: ='[1]0.2 Customer Classes'!$D$13 -> kWh | C90: 4062 | D90: 4708 | E90: =CHOOSE(MATCH(B90,{0,"kWh","kW"},0),1,'[1]3.11 LoadForecast'!$I43*'[1]3.11 LoadForecast'!B87,'[1]3.11 LoadForecast'!$I73) -> 14859993.19 | F90: 0.0036 | G90: =E90*F90 -> 53495.97547 | H90: =CHOOSE(MATCH(B90,{0,"kWh","kW"},0),1,'[1]3.11 LoadForecast'!$J43*'[1]3.11 LoadForecast'!C87,'[1]3.11 LoadForecast'!$J73) -> 14878532.35 | I90: 0.0036 | J90: =H90*I90 -> 53562.71646
A91: =A16 -> General Service < 50 kW | B91: ='[1]0.2 Customer Classes'!$D$14 -> kWh | C91: 4062 | D91: 4708 | E91: =CHOOSE(MATCH(B91,{0,"kWh","kW"},0),1,'[1]3.11 LoadForecast'!$I44*'[1]3.11 LoadForecast'!B88,'[1]3.11 LoadForecast'!$I74) -> 5151369.722 | F91: 0.0036 | G91: =E91*F91 -> 18544.931 | H91: =CHOOSE(MATCH(B91,{0,"kWh","kW"},0),1,'[1]3.11 LoadForecast'!$J44*'[1]3.11 LoadForecast'!C88,'[1]3.11 LoadForecast'!$J74) -> 5249882.917 | I91: 0.0036 | J91: =H91*I91 -> 18899.5785
A92: =A17 -> General Service > 50 to 4999 kW | B92: ='[1]0.2 Customer Classes'!$D$15 -> kW | C92: 4062 | D92: 4708 | E92: =CHOOSE(MATCH(B92,{0,"kWh","kW"},0),1,'[1]3.11 LoadForecast'!$I45*'[1]3.11 LoadForecast'!B89,'[1]3.11 LoadForecast'!$I75) -> 19002.18965 | F92: 0.0036 | G92: =E92*F92 -> 68.40788273 | H92: =CHOOSE(MATCH(B92,{0,"kWh","kW"},0),1,'[1]3.11 LoadForecast'!$J45*'[1]3.11 LoadForecast'!C89,'[1]3.11 LoadForecast'!$J75) -> 18883.31335 | I92: 0.0036 | J92: =H92*I92 -> 67.97992804
A93: =A18 -> Unmetered Scattered Load | B93: ='[1]0.2 Customer Classes'!$D$16 -> kWh | C93: 4062 | D93: 4708 | E93: =CHOOSE(MATCH(B93,{0,"kWh","kW"},0),1,'[1]3.11 LoadForecast'!$I46*'[1]3.11 LoadForecast'!B90,'[1]3.11 LoadForecast'!$I76) -> 5522.27045 | F93: 0.0036 | G93: =E93*F93 -> 19.88017362 | H93: =CHOOSE(MATCH(B93,{0,"kWh","kW"},0),1,'[1]3.11 LoadForecast'!$J46*'[1]3.11 LoadForecast'!C90,'[1]3.11 LoadForecast'!$J76) -> 5627.876636 | I93: 0.0036 | J93: =H93*I93 -> 20.26035589
A94: =A19 -> Sentinel Lighting | B94: ='[1]0.2 Customer Classes'!$D$17 -> kW | C94: 4062 | D94: 4708 | E94: =CHOOSE(MATCH(B94,{0,"kWh","kW"},0),1,'[1]3.11 LoadForecast'!$I47*'[1]3.11 LoadForecast'!B91,'[1]3.11 LoadForecast'!$I77) -> 65 | F94: 0.0036 | G94: =E94*F94 -> 0.234 | H94: =CHOOSE(MATCH(B94,{0,"kWh","kW"},0),1,'[1]3.11 LoadForecast'!$J47*'[1]3.11 LoadForecast'!C91,'[1]3.11 LoadForecast'!$J77) -> 65 | I94: 0.0036 | J94: =H94*I94 -> 0.234
A95: =A20 -> Street Lighting | B95: ='[1]0.2 Customer Classes'!$D$18 -> kW | C95: 4062 | D95: 4708 | E95: =CHOOSE(MATCH(B95,{0,"kWh","kW"},0),1,'[1]3.11 LoadForecast'!$I48*'[1]3.11 LoadForecast'!B92,'[1]3.11 LoadForecast'!$I78) -> 774 | F95: 0.0036 | G95: =E95*F95 -> 2.7864 | H95: =CHOOSE(MATCH(B95,{0,"kWh","kW"},0),1,'[1]3.11 LoadForecast'!$J48*'[1]3.11 LoadForecast'!C92,'[1]3.11 LoadForecast'!$J78) -> 773.7 | I95: 0.0036 | J95: =H95*I95 -> 2.78532
A96: =A21 -> other | B96: ='[1]0.2 Customer Classes'!$D$19 -> 0 | C96: 4062 | D96: 4708 | E96: =CHOOSE(MATCH(B96,{0,"kWh","kW"},0),1,'[1]3.11 LoadForecast'!$I49*'[1]3.11 LoadForecast'!B93,'[1]3.11 LoadForecast'!$I79) -> 1 | F96: 0.0036 | G96: =E96*F96 -> 0.0036 | H96: =CHOOSE(MATCH(B96,{0,"kWh","kW"},0),1,'[1]3.11 LoadForecast'!$J49*'[1]3.11 LoadForecast'!C93,'[1]3.11 LoadForecast'!$J79) -> 1 | I96: 0.0036 | J96: =H96*I96 -> 0.0036
A97: =A22 -> 0 | B97: ='[1]0.2 Customer Classes'!$D$20 -> 0 | C97: 4062 | D97: 4708 | E97: =CHOOSE(MATCH(B97,{0,"kWh","kW"},0),1,'[1]3.11 LoadForecast'!$I50*'[1]3.11 LoadForecast'!B94,'[1]3.11 LoadForecast'!$I80) -> 1 | F97: 0.0036 | G97: =E97*F97 -> 0.0036 | H97: =CHOOSE(MATCH(B97,{0,"kWh","kW"},0),1,'[1]3.11 LoadForecast'!$J50*'[1]3.11 LoadForecast'!C94,'[1]3.11 LoadForecast'!$J80) -> 1 | I97: 0.0036 | J97: =H97*I97 -> 0.0036
A98: =A23 -> 0 | B98: ='[1]0.2 Customer Classes'!$D$21 -> 0 | C98: 4062 | D98: 4708 | E98: =CHOOSE(MATCH(B98,{0,"kWh","kW"},0),1,'[1]3.11 LoadForecast'!$I51*'[1]3.11 LoadForecast'!B95,'[1]3.11 LoadForecast'!$I81) -> 1 | F98: 0.0036 | G98: =E98*F98 -> 0.0036 | H98: =CHOOSE(MATCH(B98,{0,"kWh","kW"},0),1,'[1]3.11 LoadForecast'!$J51*'[1]3.11 LoadForecast'!C95,'[1]3.11 LoadForecast'!$J81) -> 1 | I98: 0.0036 | J98: =H98*I98 -> 0.0036
A99: TOTAL | E99: =SUM(E90:E98) -> 20036729.37 | G99: =SUM(G90:G98) -> 72132.22572 | H99: =SUM(H90:H98) -> 20153768.16 | J99: =SUM(J90:J98) -> 72553.56537
A101: Rural Rate Protection
A102: (volumes for the bridge and test year are automatically loss adjusted)
E103: ='[1]0.1 LDC Info'!$E$23 -> 2018 | H103: ='[1]0.1 LDC Info'!$E$25 -> 2019
A104: Customer | C104: Revenue | D104: Expense | F104: rate ($/kWh): | I104: rate ($/kWh):
A105: Class Name | C105: USA # | D105: USA # | E105: Volume | G105: Amount | H105: Volume | J105: Amount
A106: =A15 -> Residential | B106: ='[1]0.2 Customer Classes'!$D$13 -> kWh | C106: 4062 | D106: 4730 | E106: =CHOOSE(MATCH(B106,{0,"kWh","kW"},0),1,'[1]3.11 LoadForecast'!$I43*'[1]3.11 LoadForecast'!B87,'[1]3.11 LoadForecast'!$I73) -> 14859993.19 | F106: 0.0013 | G106: =E106*F106 -> 19317.99114 | H106: =CHOOSE(MATCH(B106,{0,"kWh","kW"},0),1,'[1]3.11 LoadForecast'!$J43*'[1]3.11 LoadForecast'!C87,'[1]3.11 LoadForecast'!$J73) -> 14878532.35 | I106: 0.0003 | J106: =H106*I106 -> 4463.559705
A107: =A16 -> General Service < 50 kW | B107: ='[1]0.2 Customer Classes'!$D$14 -> kWh | C107: 4062 | D107: 4730 | E107: =CHOOSE(MATCH(B107,{0,"kWh","kW"},0),1,'[1]3.11 LoadForecast'!$I44*'[1]3.11 LoadForecast'!B88,'[1]3.11 LoadForecast'!$I74) -> 5151369.722 | F107: 0.0013 | G107: =E107*F107 -> 6696.780639 | H107: =CHOOSE(MATCH(B107,{0,"kWh","kW"},0),1,'[1]3.11 LoadForecast'!$J44*'[1]3.11 LoadForecast'!C88,'[1]3.11 LoadForecast'!$J74) -> 5249882.917 | I107: 0.0003 | J107: =H107*I107 -> 1574.964875
A108: =A17 -> General Service > 50 to 4999 kW | B108: ='[1]0.2 Customer Classes'!$D$15 -> kW | C108: 4062 | D108: 4730 | E108: =CHOOSE(MATCH(B108,{0,"kWh","kW"},0),1,'[1]3.11 LoadForecast'!$I45*'[1]3.11 LoadForecast'!B89,'[1]3.11 LoadForecast'!$I75) -> 19002.18965 | F108: 0.0013 | G108: =E108*F108 -> 24.70284654 | H108: =CHOOSE(MATCH(B108,{0,"kWh","kW"},0),1,'[1]3.11 LoadForecast'!$J45*'[1]3.11 LoadForecast'!C89,'[1]3.11 LoadForecast'!$J75) -> 18883.31335 | I108: 0.0003 | J108: =H108*I108 -> 5.664994004
A109: =A18 -> Unmetered Scattered Load | B109: ='[1]0.2 Customer Classes'!$D$16 -> kWh | C109: 4062 | D109: 4730 | E109: =CHOOSE(MATCH(B109,{0,"kWh","kW"},0),1,'[1]3.11 LoadForecast'!$I46*'[1]3.11 LoadForecast'!B90,'[1]3.11 LoadForecast'!$I76) -> 5522.27045 | F109: 0.0013 | G109: =E109*F109 -> 7.178951585 | H109: =CHOOSE(MATCH(B109,{0,"kWh","kW"},0),1,'[1]3.11 LoadForecast'!$J46*'[1]3.11 LoadForecast'!C90,'[1]3.11 LoadForecast'!$J76) -> 5627.876636 | I109: 0.0003 | J109: =H109*I109 -> 1.688362991
A110: =A19 -> Sentinel Lighting | B110: ='[1]0.2 Customer Classes'!$D$17 -> kW | C110: 4062 | D110: 4730 | E110: =CHOOSE(MATCH(B110,{0,"kWh","kW"},0),1,'[1]3.11 LoadForecast'!$I47*'[1]3.11 LoadForecast'!B91,'[1]3.11 LoadForecast'!$I77) -> 65 | F110: 0.0013 | G110: =E110*F110 -> 0.0845 | H110: =CHOOSE(MATCH(B110,{0,"kWh","kW"},0),1,'[1]3.11 LoadForecast'!$J47*'[1]3.11 LoadForecast'!C91,'[1]3.11 LoadForecast'!$J77) -> 65 | I110: 0.0003 | J110: =H110*I110 -> 0.0195
A111: =A20 -> Street Lighting | B111: ='[1]0.2 Customer Classes'!$D$18 -> kW | C111: 4062 | D111: 4730 | E111: =CHOOSE(MATCH(B111,{0,"kWh","kW"},0),1,'[1]3.11 LoadForecast'!$I48*'[1]3.11 LoadForecast'!B92,'[1]3.11 LoadForecast'!$I78) -> 774 | F111: 0.0013 | G111: =E111*F111 -> 1.0062 | H111: =CHOOSE(MATCH(B111,{0,"kWh","kW"},0),1,'[1]3.11 LoadForecast'!$J48*'[1]3.11 LoadForecast'!C92,'[1]3.11 LoadForecast'!$J78) -> 773.7 | I111: 0.0003 | J111: =H111*I111 -> 0.23211
A112: =A21 -> other | B112: ='[1]0.2 Customer Classes'!$D$19 -> 0 | C112: 4062 | D112: 4730 | E112: =CHOOSE(MATCH(B112,{0,"kWh","kW"},0),1,'[1]3.11 LoadForecast'!$I49*'[1]3.11 LoadForecast'!B93,'[1]3.11 LoadForecast'!$I79) -> 1 | F112: 0.0013 | G112: =E112*F112 -> 0.0013 | H112: =CHOOSE(MATCH(B112,{0,"kWh","kW"},0),1,'[1]3.11 LoadForecast'!$J49*'[1]3.11 LoadForecast'!B93,'[1]3.11 LoadForecast'!$J79) -> 1 | I112: 0.0003 | J112: =H112*I112 -> 0.0003
A113: =A22 -> 0 | B113: ='[1]0.2 Customer Classes'!$D$20 -> 0 | C113: 4062 | D113: 4730 | E113: =CHOOSE(MATCH(B113,{0,"kWh","kW"},0),1,'[1]3.11 LoadForecast'!$I50*'[1]3.11 LoadForecast'!B94,'[1]3.11 LoadForecast'!$I80) -> 1 | F113: 0.0013 | G113: =E113*F113 -> 0.0013 | H113: =CHOOSE(MATCH(B113,{0,"kWh","kW"},0),1,'[1]3.11 LoadForecast'!$J50*'[1]3.11 LoadForecast'!B94,'[1]3.11 LoadForecast'!$J80) -> 1 | I113: 0.0003 | J113: =H113*I113 -> 0.0003
A114: =A23 -> 0 | B114: ='[1]0.2 Customer Classes'!$D$21 -> 0 | C114: 4062 | D114: 4730 | E114: =CHOOSE(MATCH(B114,{0,"kWh","kW"},0),1,'[1]3.11 LoadForecast'!$I51*'[1]3.11 LoadForecast'!B95,'[1]3.11 LoadForecast'!$I81) -> 1 | F114: 0.0013 | G114: =E114*F114 -> 0.0013 | H114: =CHOOSE(MATCH(B114,{0,"kWh","kW"},0),1,'[1]3.11 LoadForecast'!$J51*'[1]3.11 LoadForecast'!B95,'[1]3.11 LoadForecast'!$J81) -> 1 | I114: 0.0003 | J114: =H114*I114 -> 0.0003
A115: TOTAL | E115: =SUM(E106:E114) -> 20036729.37 | G115: =SUM(G106:G114) -> 26047.74818 | H115: =SUM(H106:H114) -> 20153768.16 | J115: =SUM(J106:J114) -> 6046.130447
A117: Smart Meter Entity Charge
A118: (per customer)
E119: ='[1]0.1 LDC Info'!$E$23 -> 2018 | H119: ='[1]0.1 LDC Info'!$E$25 -> 2019
A120: Customer | C120: Revenue | D120: Expense | F120: rate ($/kWh): | I120: rate ($/kWh):
A121: Class Name | C121: USA # | D121: USA # | E121: Volume | G121: Amount | H121: Volume | J121: Amount
A122: =A15 -> Residential | B122: Cust | E122: ='[1]3.11 LoadForecast'!I14 -> 1043.488368 | F122: 0 | G122: =E122*F122 -> 0 | H122: ='[1]3.11 LoadForecast'!J14 -> 1033.081569 | I122: 0.57 | J122: =H122*I122*12 -> 7066.277933
A123: =A16 -> General Service < 50 kW | B123: Cust | E123: ='[1]3.11 LoadForecast'!I15 -> 150.2199753 | F123: 0 | G123: =E123*F123 -> 0 | H123: ='[1]3.11 LoadForecast'!J15 -> 148.4607958 | I123: 0.57 | J123: =H123*I123*12 -> 1015.471843
A124: =A17 -> General Service > 50 to 4999 kW | B124: Cust | E124: ='[1]3.11 LoadForecast'!I16 -> 15.11542999 | F124: 0 | G124: =E124*F124 -> 0 | H124: ='[1]3.11 LoadForecast'!J16 -> 15.23174825 | I124: 0.57 | J124: =H124*I124*12 -> 104.185158
A125: TOTAL | E125: =SUM(E122:E124) -> 1208.823773 | G125: =SUM(G122:G124) -> 0 | H125: =SUM(H122:H124) -> 1196.774113 | J125: =SUM(J122:J124) -> 8185.934935
A127: OESP
A128: (volumes for the bridge and test year are automatically loss adjusted)
E129: ='[1]0.1 LDC Info'!$E$23 -> 2018 | H129: ='[1]0.1 LDC Info'!$E$25 -> 2019
A130: Customer | C130: Revenue | D130: Expense | F130: rate ($/kWh): | I130: rate ($/kWh):
A131: Class Name | C131: USA # | D131: USA # | E131: Volume | G131: Amount | H131: Volume | J131: Amount
A132: =A42 -> Residential | B132: ='[1]0.2 Customer Classes'!$D$13 -> kWh | C132: 4062 | D132: 4730 | E132: =CHOOSE(MATCH(B132,{0,"kWh","kW"},0),1,'[1]3.11 LoadForecast'!$I43*'[1]3.11 LoadForecast'!B87,'[1]3.11 LoadForecast'!$I73) -> 14859993.19 | F132: 0 | G132: =E132*F132 -> 0 | H132: =CHOOSE(MATCH(B106,{0,"kWh","kW"},0),1,'[1]3.11 LoadForecast'!$J43*'[1]3.11 LoadForecast'!C87,'[1]3.11 LoadForecast'!$J73) -> 14878532.35 | I132: 0 | J132: =H132*I132 -> 0
A133: =A43 -> General Service < 50 kW | B133: ='[1]0.2 Customer Classes'!$D$14 -> kWh | C133: 4062 | D133: 4730 | E133: =CHOOSE(MATCH(B133,{0,"kWh","kW"},0),1,'[1]3.11 LoadForecast'!$I44*'[1]3.11 LoadForecast'!B88,'[1]3.11 LoadForecast'!$I74) -> 5151369.722 | F133: 0 | G133: =E133*F133 -> 0 | H133: =CHOOSE(MATCH(B107,{0,"kWh","kW"},0),1,'[1]3.11 LoadForecast'!$J44*'[1]3.11 LoadForecast'!C88,'[1]3.11 LoadForecast'!$J74) -> 5249882.917 | I133: 0 | J133: =H133*I133 -> 0
A134: TOTAL | E134: =SUM(E132:E133) -> 20011362.91 | G134: =SUM(G132:G133) -> 0 | H134: =SUM(H132:H133) -> 20128415.27 | J134: =SUM(J132:J133) -> 0
A137: Low Voltage Charges - Historical and Proposed LV Charges
E139: ='[1]0.1 LDC Info'!$E$27 -> 2012 | F139: ='[1]0.1 LDC Info'!$E$27+1 -> 2013 | G139: ='[1]0.1 LDC Info'!$E$27+2 -> 2014 | H139: ='[1]0.1 LDC Info'!$E$27+3 -> 2015 | I139: ='[1]0.1 LDC Info'!$E$27+4 -> 2016 | J139: 2017 | K139: AVG
A141: ='[1]1.2 TB Historical Balances'!B313 -> 4075-Billed - LV | E141: -30387.55 | F141: -17153.5 | G141: -19856.55 | H141: -17265.37 | I141: -14687.88 | J141: -14621.87 | K141: =AVERAGE(G141:J141) -> -16607.9175
A142: ='[1]1.2 TB Historical Balances'!B404 -> 4750-Charges - LV | E142: 15490.89 | F142: 39969.43 | G142: 71247.38 | H142: 74594.78 | I142: 70967.4 | J142: 59187.4 | K142: =AVERAGE(G142:J142) -> 68999.24
A143: 1551 LV Charges | E143: ='[1]1.2 TB Historical Balances'!J84 -> -31254.43 | F143: ='[1]1.2 TB Historical Balances'!M84 -> 7220.02 | G143: ='[1]1.2 TB Historical Balances'!P84 -> 39576.28 | H143: ='[1]1.2 TB Historical Balances'!S84 -> 110948.96 | I143: ='[1]1.2 TB Historical Balances'!V84 -> 153699.85 | J143: ='[1]1.2 TB Historical Balances'!Y84 -> 200139.14
A144: Low Voltage Charges - Allocation of LV Charges based on Transmission Connection Revenues
A145: (volumes are not loss adjusted)
B147: ALLOCATON BASED ON TRANSMISSION-CONNECTION REVENUE
A148: Customer Class Name | C148: RTSR Rate | D148: Uplifted Volumes | F148: Revenue | G148: % Alloc
A149: =A15 -> Residential | B149: ='[1]0.2 Customer Classes'!$D$13 -> kWh | C149: =I74 -> 0.001844188142 | D149: =H58 -> 14878532.35 | F149: =C149*D149 -> 27438.81294 | G149: =F149/$F$158 -> 0.5476181379
A150: =A16 -> General Service < 50 kW | B150: ='[1]0.2 Customer Classes'!$D$14 -> kWh | C150: =I75 -> 0.001844188685 | D150: =H59 -> 5249882.917 | F150: =C150*D150 -> 9681.774673 | G150: =F150/$F$158 -> 0.193226851
A151: =A17 -> General Service > 50 to 4999 kW | B151: ='[1]0.2 Customer Classes'!$D$15 -> kW | C151: =I76 -> 0.6642537961 | D151: =H60 -> 18883.31335 | F151: =C151*D151 -> 12543.31257 | G151: =F151/$F$158 -> 0.2503368309
A152: =A18 -> Unmetered Scattered Load | B152: ='[1]0.2 Customer Classes'!$D$16 -> kWh | C152: =I77 -> 0.001844168098 | D152: =H61 -> 5627.876636 | F152: =C152*D152 -> 10.37875055 | G152: =F152/$F$158 -> 0.000207136951
A153: =A19 -> Sentinel Lighting | B153: ='[1]0.2 Customer Classes'!$D$17 -> kW | C153: =I78 -> 0.5243860443 | D153: =H62 -> 65 | F153: =C153*D153 -> 34.08509288 | G153: =F153/$F$158 -> 0.0006802632146
A154: =A20 -> Street Lighting | B154: ='[1]0.2 Customer Classes'!$D$18 -> kW | C154: =I79 -> 0.5136068486 | D154: =H63 -> 773.7 | F154: =C154*D154 -> 397.3776188 | G154: =F154/$F$158 -> 0.0079307801
A155: =A21 -> other | B155: ='[1]0.2 Customer Classes'!$D$19 -> 0 | C155: =I80 -> 0 | D155: =H64 -> 1 | F155: =C155*D155 -> 0 | G155: =F155/$F$158 -> 0
A156: =A22 -> 0 | B156: ='[1]0.2 Customer Classes'!$D$19 -> 0 | C156: =I81 -> 0 | D156: =H65 -> 1 | F156: =C156*D156 -> 0 | G156: =F156/$F$158 -> 0
A157: =A22 -> 0 | B157: ='[1]0.2 Customer Classes'!$D$19 -> 0 | C157: =I82 -> 0 | D157: =H66 -> 1 | F157: =C157*D157 -> 0 | G157: =F157/$F$158 -> 0
A158: TOTAL | D158: =SUM(D149:E157) -> 20153768.16 | F158: =SUM(F149:F157) -> 50105.74164 | G158: =SUM(G149:G157) -> 1
A160: Low Voltage Charges Rate Rider Calculations
A161: (volumes are not loss adjusted)
B163: PROPOSED LOW VOLTAGE CHARGES & RATES
A164: Customer Class Name | B164: % Allocation | E164: Charges | F164: Not Uplifted Volumes | G164: Rate | H164: per
A165: =A15 -> Residential | B165: =G149 -> 0.5476181379 | E165: =$E$174*B165 -> 37785.23533 | F165: =CHOOSE(MATCH(B106,{0,"kWh","kW"},0),1,'[1]3.11 LoadForecast'!$J43,'[1]3.11 LoadForecast'!$J73) -> 13831680.84 | G165: =ROUND(E165/F165,4) -> 0.0027 | H165: ='[1]0.2 Customer Classes'!$D13 -> kWh
A166: =A16 -> General Service < 50 kW | B166: =G150 -> 0.193226851 | E166: =$E$174*B166 -> 13332.50586 | F166: =CHOOSE(MATCH(B107,{0,"kWh","kW"},0),1,'[1]3.11 LoadForecast'!$J44,'[1]3.11 LoadForecast'!$J74) -> 4880501.868 | G166: =ROUND(E166/F166,4) -> 0.0027 | H166: ='[1]0.2 Customer Classes'!$D14 -> kWh
A167: =A17 -> General Service > 50 to 4999 kW | B167: =G151 -> 0.2503368309 | E167: =$E$174*B167 -> 17273.05107 | F167: =CHOOSE(MATCH(B108,{0,"kWh","kW"},0),1,'[1]3.11 LoadForecast'!$J45,'[1]3.11 LoadForecast'!$J75) -> 18883.31335 | G167: =ROUND(E167/F167,4) -> 0.9147 | H167: ='[1]0.2 Customer Classes'!$D15 -> kW
A168: =A18 -> Unmetered Scattered Load | B168: =G152 -> 0.000207136951 | E168: =$E$174*B168 -> 14.2922922 | F168: =CHOOSE(MATCH(B109,{0,"kWh","kW"},0),1,'[1]3.11 LoadForecast'!$J46,'[1]3.11 LoadForecast'!$J76) -> 5231.9 | G168: =ROUND(E168/F168,4) -> 0.0027 | H168: ='[1]0.2 Customer Classes'!$D16 -> kWh
A169: =A19 -> Sentinel Lighting | B169: =G153 -> 0.0006802632146 | E169: =$E$174*B169 -> 46.9376448 | F169: =CHOOSE(MATCH(B110,{0,"kWh","kW"},0),1,'[1]3.11 LoadForecast'!$J47,'[1]3.11 LoadForecast'!$J77) -> 65 | G169: =ROUND(E169/F169,4) -> 0.7221 | H169: ='[1]0.2 Customer Classes'!$D17 -> kW
A170: =A20 -> Street Lighting | B170: =G154 -> 0.0079307801 | E170: =$E$174*B170 -> 547.2177995 | F170: =CHOOSE(MATCH(B111,{0,"kWh","kW"},0),1,'[1]3.11 LoadForecast'!$J48,'[1]3.11 LoadForecast'!$J78) -> 773.7 | G170: =ROUND(E170/F170,4) -> 0.7073 | H170: ='[1]0.2 Customer Classes'!$D18 -> kW
A171: =A21 -> other | B171: =G155 -> 0 | E171: =$E$174*B171 -> 0 | F171: =CHOOSE(MATCH(B112,{0,"kWh","kW"},0),1,'[1]3.11 LoadForecast'!$J49,'[1]3.11 LoadForecast'!$J79) -> 1 | G171: =ROUND(E171/F171,4) -> 0 | H171: ='[1]0.2 Customer Classes'!$D19 -> 0
A172: =A22 -> 0 | B172: =G156 -> 0 | E172: =$E$174*B172 -> 0 | F172: =CHOOSE(MATCH(B113,{0,"kWh","kW"},0),1,'[1]3.11 LoadForecast'!$J50,'[1]3.11 LoadForecast'!$J80) -> 1 | G172: =ROUND(E172/F172,4) -> 0 | H172: ='[1]0.2 Customer Classes'!$D20 -> 0
A173: =A23 -> 0 | B173: =G157 -> 0 | E173: =$E$174*B173 -> 0 | F173: =CHOOSE(MATCH(B114,{0,"kWh","kW"},0),1,'[1]3.11 LoadForecast'!$J51,'[1]3.11 LoadForecast'!$J81) -> 1 | G173: =ROUND(E173/F173,4) -> 0 | H173: ='[1]0.2 Customer Classes'!$D21 -> 0
A174: TOTAL | B174: =SUM(B165:D173) -> 1 | E174: =K142 -> 68999.24 | F174: =SUM(F165:F173) -> 18737139.62
A176: Low Voltage Charges to be added to power supply expense for bridge and test year.
A177: (volumes are not loss adjusted)
A179: Customer | C179: Revenue | D179: Expense | E179: 2018 | H179: 2019
A180: Class Name | C180: USA # | D180: USA # | E180: Volume | F180: Rate | G180: Amount | H180: Volume | I180: Rate | J180: Amount
A181: =A15 -> Residential | B181: ='[1]0.2 Customer Classes'!$D$13 -> kWh | C181: 4075 | D181: 4750 | E181: =CHOOSE(MATCH(B149,{0,"kWh","kW"},0),1,'[1]3.11 LoadForecast'!$I43,'[1]3.11 LoadForecast'!$I73) -> 14078629.26 | F181: 0.0006 | G181: =E181*F181 -> 8447.177557 | H181: =F165 -> 13831680.84 | I181: =G165 -> 0.0027 | J181: =H181*I181 -> 37345.53826
A182: =A16 -> General Service < 50 kW | B182: ='[1]0.2 Customer Classes'!$D$14 -> kWh | C182: 4075 | D182: 4750 | E182: =CHOOSE(MATCH(B150,{0,"kWh","kW"},0),1,'[1]3.11 LoadForecast'!$I44,'[1]3.11 LoadForecast'!$I74) -> 4880501.868 | F182: 0.0006 | G182: =E182*F182 -> 2928.301121 | H182: =F166 -> 4880501.868 | I182: =G166 -> 0.0027 | J182: =H182*I182 -> 13177.35504
A183: =A17 -> General Service > 50 to 4999 kW | B183: ='[1]0.2 Customer Classes'!$D$15 -> kW | C183: 4075 | D183: 4750 | E183: =CHOOSE(MATCH(B151,{0,"kWh","kW"},0),1,'[1]3.11 LoadForecast'!$I45,'[1]3.11 LoadForecast'!$I75) -> 19002.18965 | F183: 0.2256 | G183: =E183*F183 -> 4286.893985 | H183: =F167 -> 18883.31335 | I183: =G167 -> 0.9147 | J183: =H183*I183 -> 17272.56672
A184: =A18 -> Unmetered Scattered Load | B184: ='[1]0.2 Customer Classes'!$D$16 -> kWh | C184: 4075 | D184: 4750 | E184: =CHOOSE(MATCH(B152,{0,"kWh","kW"},0),1,'[1]3.11 LoadForecast'!$I46,'[1]3.11 LoadForecast'!$I76) -> 5231.9 | F184: 0.0006 | G184: =E184*F184 -> 3.13914 | H184: =F168 -> 5231.9 | I184: =G168 -> 0.0027 | J184: =H184*I184 -> 14.12613
A185: =A19 -> Sentinel Lighting | B185: ='[1]0.2 Customer Classes'!$D$17 -> kW | C185: 4075 | D185: 4750 | E185: =CHOOSE(MATCH(B153,{0,"kWh","kW"},0),1,'[1]3.11 LoadForecast'!$I47,'[1]3.11 LoadForecast'!$I77) -> 65 | F185: 0.2261 | G185: =E185*F185 -> 14.6965 | H185: =F169 -> 65 | I185: =G169 -> 0.7221 | J185: =H185*I185 -> 46.9365
A186: =A20 -> Street Lighting | B186: ='[1]0.2 Customer Classes'!$D$18 -> kW | C186: 4075 | D186: 4750 | E186: =CHOOSE(MATCH(B154,{0,"kWh","kW"},0),1,'[1]3.11 LoadForecast'!$I48,'[1]3.11 LoadForecast'!$I78) -> 774 | F186: 0.2173 | G186: =E186*F186 -> 168.1902 | H186: =F170 -> 773.7 | I186: =G170 -> 0.7073 | J186: =H186*I186 -> 547.23801
A187: =A21 -> other | B187: ='[1]0.2 Customer Classes'!$D$19 -> 0 | C187: 4075 | D187: 4750 | E187: =CHOOSE(MATCH(B155,{0,"kWh","kW"},0),1,'[1]3.11 LoadForecast'!$I49,'[1]3.11 LoadForecast'!$I79) -> 1 | F187: 0 | G187: =E187*F187 -> 0 | H187: =F171 -> 1 | I187: =G171 -> 0 | J187: =H187*I187 -> 0
A188: =A22 -> 0 | B188: ='[1]0.2 Customer Classes'!$D$20 -> 0 | C188: 4075 | D188: 4750 | E188: =CHOOSE(MATCH(B156,{0,"kWh","kW"},0),1,'[1]3.11 LoadForecast'!$I50,'[1]3.11 LoadForecast'!$I80) -> 1 | F188: 0 | G188: =E188*F188 -> 0 | H188: =F172 -> 1 | I188: =G172 -> 0 | J188: =H188*I188 -> 0
A189: =A23 -> 0 | B189: ='[1]0.2 Customer Classes'!$D$21 -> 0 | C189: 4075 | D189: 4750 | E189: =CHOOSE(MATCH(B157,{0,"kWh","kW"},0),1,'[1]3.11 LoadForecast'!$I51,'[1]3.11 LoadForecast'!$I81) -> 1 | F189: 0 | G189: =E189*F189 -> 0 | H189: =F173 -> 1 | I189: =G173 -> 0 | J189: =H189*I189 -> 0
A190: TOTAL | C190: 0 | D190: 0 | E190: =SUM(E181:E189) -> 18984207.22 | G190: =SUM(G181:G189) -> 15848.3985 | H190: =SUM(H181:H189) -> 18737139.62 | J190: =SUM(J181:J189) -> 68403.76066
A193: Projected Power Supply Expense | G193: =G51+G67+G83+G99+G115+G125+G190 -> 2600626.237 | J193: =J51+J67+J83+J99+J115+J125+J134+J190 -> 2692685.772
